bitfinex/quotes_BTCUSD_20241003
["timestamp","ask_amount","ask_price","bid_price","bid_amount"]
[1727970442883,0.34206063,60529.0,60519.0,0.330472]
[1727970442884,0.165218,60527.0,60519.0,0.330472]
[1727970443125,0.17685063,60529.0,60516.0,0.0493862]
[1727970443350,0.0822,60517.0,60516.0,0.0493862]
[1727970443577,0.0822,60517.0,60516.0,0.2146312]
[1727970443806,0.0822,60517.0,60516.0,0.165245]
[1727970444046,0.0165567,60529.0,60528.0,0.165212]
[1727970445029,0.0195567,60529.0,60528.0,0.165212]
[1727970445521,0.0195567,60529.0,60528.0,0.152212]
[1727970445768,0.0165567,60529.0,60525.0,0.330437]
[1727970445945,0.0185567,60529.0,60524.0,0.165223]
[1727970446217,0.2599667,60529.0,60528.0,0.001]
[1727970446439,0.3583667,60529.0,60528.0,0.001]
[1727970446925,0.1911567,60529.0,60528.0,0.001]
[1727970447210,0.3583667,60529.0,60528.0,0.001]
[1727970447440,0.165242,60517.0,60510.0,0.33052]
[1727970447656,0.165242,60517.0,60512.0,0.165255]
[1727970447657,0.0245542,60517.0,60512.0,0.165255]
[1727970447880,0.0803,60519.0,60516.0,0.24872116]
[1727970448116,0.16524,60518.0,60514.0,0.16525]
[1727970448368,0.410775,60519.0,60512.0,0.330509]
[1727970448369,0.0803,60519.0,60518.0,0.16524]
[1727970448588,0.0803,60519.0,60514.0,0.330501]
[1727970448814,0.0803,60519.0,60516.0,0.166245]
[1727970448815,0.002,60517.0,60516.0,0.166245]
[1727970449035,0.0259034,60518.0,60517.0,0.165242]
[1727970449489,0.003,60518.0,60517.0,0.165242]
[1727970451133,0.02590191,60525.0,60524.0,0.165223]
[1727970452961,0.0165567,60529.0,60528.0,0.165212]
[1727970453197,0.0165567,60529.0,60528.0,0.16648118]
[1727970453440,0.0165567,60529.0,60528.0,0.165212]
[1727970455118,0.0165567,60529.0,60528.0,0.46493241]
[1727970455378,0.0165567,60529.0,60528.0,0.46762871]
[1727970455610,0.0165567,60529.0,60528.0,0.45739871]
[1727970455611,7e-07,60529.0,60528.0,0.45739871]
[1727970455847,0.000816,60554.0,60528.0,0.45739871]
[1727970455848,0.24872116,60549.0,60538.0,0.265185]
[1727970456110,0.24872116,60549.0,60538.0,0.71346406]
[1727970456629,0.000816,60554.0,60538.0,0.71346406]
[1727970456883,0.000816,60554.0,60553.0,0.165144]
[1727970457099,0.000816,60554.0,60553.0,0.71342306]
[1727970458280,0.000816,60554.0,60553.0,0.76965306]
[1727970458501,0.000818,60569.0,60558.0,0.60645235]
[1727970458721,0.000818,60569.0,60558.0,0.77163906]
[1727970459449,0.000818,60569.0,60558.0,0.77663906]
[1727970459951,0.000818,60569.0,60558.0,0.79063906]
[1727970460185,0.000818,60569.0,60558.0,0.73916256]
[1727970460394,0.000818,60569.0,60558.0,0.79539256]
[1727970460619,0.000818,60569.0,60561.0,0.165122]
[1727970460836,0.24872116,60581.0,60569.0,0.430198]
[1727970461065,0.24872116,60581.0,60578.0,0.45016835]
[1727970461501,0.24872116,60588.0,60578.0,0.45016835]
[1727970461936,0.000817,60590.0,60578.0,0.45016835]
[1727970462413,0.000817,60590.0,60578.0,0.45816835]
[1727970462642,0.000817,60590.0,60578.0,0.62135506]
[1727970462893,0.000817,60590.0,60578.0,0.62035506]
[1727970463088,0.000817,60590.0,60578.0,0.61335506]
[1727970463317,0.000817,60590.0,60578.0,0.62635506]
[1727970464170,0.000817,60590.0,60578.0,0.46316835]
[1727970464384,0.000817,60590.0,60578.0,0.47516835]
[1727970464606,0.000817,60590.0,60578.0,0.46216835]
[1727970464826,0.0117587,60589.0,60588.0,0.165049]
[1727970465255,0.0117587,60589.0,60582.0,0.330125]
[1727970465461,0.0117587,60589.0,60578.0,0.55458484]
[1727970465462,0.0117587,60589.0,60588.0,0.165049]
[1727970466348,0.0117587,60589.0,60583.0,0.28509235]
[1727970466556,0.0117587,60589.0,60588.0,0.165049]
[1727970466771,0.0117587,60589.0,60584.0,0.330118]
[1727970466984,0.0117587,60589.0,60583.0,0.00667472]
[1727970467208,0.0117587,60589.0,60583.0,0.330122]
[1727970467428,0.0117587,60589.0,60583.0,0.330124]
[1727970467638,0.0117587,60589.0,60584.0,0.330115]
[1727970467846,0.0117587,60589.0,60588.0,0.165049]
[1727970468076,0.0117587,60589.0,60585.0,0.330111]
[1727970468307,0.0117587,60589.0,60588.0,0.003]
[1727970468529,0.1768047,60589.0,60588.0,0.003]
[1727970468749,0.1768047,60589.0,60588.0,0.168049]
[1727970468750,0.0117587,60589.0,60588.0,0.168049]
[1727970469219,0.01348101,60589.0,60588.0,0.003]
[1727970469428,0.16505,60588.0,60583.0,0.165062]
[1727970469646,0.0952,60588.0,60583.0,0.16506]
[1727970469902,0.260249,60588.0,60584.0,0.165058]
[1727970470173,0.0952,60588.0,60582.0,0.330129]
[1727970470417,0.165058,60585.0,60581.0,0.165067]
[1727970470629,0.165063,60583.0,60579.0,0.165072]
[1727970470857,0.04279195,60585.0,60579.0,0.24872116]
[1727970471119,0.165058,60585.0,60580.0,0.165069]
[1727970471404,0.0751,60587.0,60584.0,0.165058]
[1727970471672,0.0751,60587.0,60579.0,0.24872116]
[1727970471880,0.0751,60587.0,60584.0,0.165058]
[1727970472095,0.002,60585.0,60582.0,0.165065]
[1727970472310,0.165061,60584.0,60580.0,0.16507]
[1727970472525,0.10097494,60587.0,60579.0,0.330147]
[1727970472782,0.10297494,60587.0,60584.0,0.001]
[1727970472998,0.16506,60584.0,60580.0,0.16507]
[1727970473477,0.330109,60586.0,60581.0,0.165066]
[1727970473769,0.165058,60585.0,60581.0,0.165066]
[1727970474038,0.10097494,60587.0,60579.0,0.24872116]
[1727970474309,0.002,60585.0,60584.0,0.165058]
[1727970474507,0.10097494,60587.0,60582.0,0.33013]
[1727970474760,0.10097494,60587.0,60586.0,0.165054]
[1727970475609,0.10097494,60587.0,60584.0,0.16506]
[1727970475610,0.002,60585.0,60584.0,0.16506]
[1727970475830,0.165055,60586.0,60582.0,0.165064]
[1727970476050,0.0960289,60587.0,60582.0,0.165064]
[1727970476283,0.0960289,60587.0,60579.0,0.001632]
[1727970476517,0.165063,60583.0,60579.0,0.001632]
[1727970476725,0.165063,60583.0,60579.0,0.166705]
[1727970476936,0.165063,60583.0,60580.0,0.16507]
[1727970477182,0.4261369,60587.0,60581.0,0.165066]
[1727970477183,0.33011,60586.0,60581.0,0.165066]
[1727970477428,0.0960289,60587.0,60579.0,0.331778]
[1727970477429,0.165061,60584.0,60579.0,0.331778]
[1727970477686,0.165059,60585.0,60581.0,0.165067]
[1727970477985,0.165062,60584.0,60579.0,0.166705]
[1727970478230,0.330135,60582.0,60579.0,0.001632]
[1727970478483,0.0960289,60587.0,60579.0,0.001632]
[1727970478747,0.002,60584.0,60579.0,0.002632]
[1727970478974,0.165063,60583.0,60579.0,0.166705]
[1727970479218,0.12772901,60583.0,60579.0,0.002632]
[1727970479465,0.12772901,60583.0,60579.0,0.001632]
[1727970479466,0.165069,60581.0,60579.0,0.001632]
[1727970479722,0.24247,60580.0,60579.0,0.001632]
[1727970480208,0.0774,60580.0,60579.0,0.001632]
[1727970480446,0.0774,60580.0,60579.0,0.166705]
[1727970481905,0.0774,60580.0,60579.0,0.167705]
[1727970482162,0.0774,60580.0,60579.0,0.166705]
[1727970482370,0.0774,60580.0,60579.0,0.180705]
[1727970482845,0.0952,60588.0,60587.0,0.165051]
[1727970483095,0.01229701,60589.0,60586.0,0.330107]
[1727970483340,0.01229701,60589.0,60588.0,0.165049]
[1727970484720,0.02378571,60589.0,60588.0,0.165049]
[1727970484953,0.01229701,60589.0,60588.0,0.165049]
[1727970485184,0.01229701,60589.0,60588.0,0.167049]
[1727970485713,0.01229701,60589.0,60588.0,0.171049]
[1727970487565,0.01229701,60589.0,60588.0,0.167049]
[1727970487786,0.01229701,60589.0,60588.0,0.165049]
[1727970488057,0.01429701,60589.0,60588.0,0.165049]
[1727970488302,0.03790231,60589.0,60579.0,0.53544551]
[1727970488538,0.03890231,60589.0,60579.0,0.58049616]
[1727970488764,0.01329701,60589.0,60588.0,0.169049]
[1727970489227,0.01329701,60589.0,60588.0,0.165049]
[1727970489454,0.01229701,60589.0,60588.0,0.165049]
[1727970489738,0.01429701,60589.0,60588.0,0.165049]
[1727970490478,0.02339841,60589.0,60585.0,0.33011]
[1727970490737,0.01429701,60589.0,60588.0,0.165049]
[1727970491202,0.01429701,60589.0,60588.0,0.167049]
[1727970491673,0.01229701,60589.0,60588.0,0.165049]
[1727970492665,0.01229701,60589.0,60588.0,0.167049]
[1727970492935,0.01229701,60589.0,60588.0,0.17784061]
[1727970493176,0.01229701,60589.0,60588.0,0.27784061]
[1727970493396,0.01229701,60589.0,60588.0,0.27584061]
[1727970493905,0.01229701,60589.0,60588.0,0.28384061]
[1727970494118,0.01229701,60589.0,60588.0,0.27984061]
[1727970494346,0.01229701,60589.0,60588.0,0.28984061]
[1727970494834,0.01229701,60589.0,60588.0,0.27984061]
[1727970495324,0.01229701,60589.0,60588.0,0.48225732]
[1727970495596,0.0002,60599.0,60598.0,0.165021]
[1727970496763,0.0002,60599.0,60598.0,0.174021]
[1727970497244,0.0002,60599.0,60598.0,0.165021]
[1727970497247,0.0002,60599.0,60598.0,0.55341377]
[1727970497484,0.0002,60599.0,60598.0,0.76528697]
[1727970497728,0.0002,60599.0,60598.0,0.44588696]
[1727970497994,0.0002,60599.0,60598.0,0.28270025]
[1727970498257,0.0002,60599.0,60598.0,0.27170025]
[1727970498552,0.0002,60599.0,60598.0,0.44888696]
[1727970499045,0.0002,60599.0,60598.0,0.49111696]
[1727970499279,0.0002,60599.0,60598.0,0.44888696]
[1727970499530,0.0002,60599.0,60598.0,0.78220931]
[1727970499771,0.0002,60599.0,60598.0,0.78720931]
[1727970500016,0.05,60600.0,60599.0,0.305249]
[1727970500258,0.24872116,60614.0,60601.0,0.303243]
[1727970500493,0.24872116,60614.0,60601.0,0.46642971]
[1727970501486,0.24872116,60614.0,60601.0,0.265013]
[1727970501750,0.24872116,60614.0,60601.0,0.279013]
[1727970502258,0.24872116,60614.0,60601.0,0.265013]
[1727970502500,0.24872116,60614.0,60601.0,0.47527971]
[1727970502756,0.24872116,60614.0,60601.0,0.44219971]
[1727970502989,0.24872116,60614.0,60601.0,0.45619971]
[1727970503223,0.24872116,60614.0,60601.0,0.279013]
[1727970503455,0.24872116,60614.0,60601.0,0.293013]
[1727970503697,0.24872116,60614.0,60601.0,0.44219971]
[1727970503945,0.02586077,60620.0,60601.0,0.27718671]
[1727970504182,0.24872116,60634.0,60618.0,0.45005935]
[1727970504438,0.02585808,60626.0,60618.0,0.45005935]
[1727970505467,0.24872116,60632.0,60628.0,0.329879]
[1727970505738,0.0755,60638.0,60637.0,0.164915]
[1727970506015,0.0002,60639.0,60638.0,0.164913]
[1727970508018,0.0002,60639.0,60638.0,0.57682087]
[1727970508257,0.0002,60639.0,60638.0,0.32809971]
[1727970508489,0.0002,60639.0,60638.0,0.33909971]
[1727970509185,0.0002,60639.0,60638.0,0.34709971]
[1727970509413,0.0002,60639.0,60638.0,0.33909971]
[1727970509648,0.0002,60639.0,60638.0,0.187913]
[1727970510152,0.0002,60639.0,60638.0,0.18260058]
[1727970510399,0.0002,60639.0,60638.0,0.18360058]
[1727970510656,0.0002,60639.0,60638.0,0.012]
[1727970510657,0.0781,60639.0,60638.0,0.012]
[1727970510909,0.0781,60639.0,60638.0,0.176913]
[1727970511147,0.0002,60639.0,60638.0,0.190913]
[1727970511612,0.0002,60639.0,60638.0,0.178913]
[1727970511857,0.0002,60639.0,60638.0,0.191913]
[1727970512090,0.0002,60639.0,60638.0,0.014]
[1727970512318,0.16511,60639.0,60638.0,0.014]
[1727970512553,0.16511,60639.0,60638.0,0.027]
[1727970512554,0.2998216,60639.0,60638.0,0.027]
[1727970512821,0.2998216,60639.0,60629.0,0.164936]
[1727970512822,0.0761,60631.0,60629.0,0.164936]
[1727970513050,0.0761,60631.0,60630.0,0.24872116]
[1727970513051,0.241032,60631.0,60630.0,0.24872116]
[1727970513278,0.0761,60631.0,60630.0,0.24872116]
[1727970513508,0.164939,60629.0,60622.0,0.32991]
[1727970513772,0.133188,60631.0,60625.0,0.24872116]
[1727970513773,0.164941,60628.0,60625.0,0.24872116]
[1727970514017,0.329872,60630.0,60618.0,0.3798347]
[1727970514018,0.0796,60626.0,60618.0,0.0499047]
[1727970514281,0.16496,60621.0,60618.0,0.0499047]
[1727970514521,0.164964,60619.0,60618.0,0.0499047]
[1727970514745,0.0796,60619.0,60608.0,0.24872116]
[1727970514989,0.164972,60616.0,60615.0,0.24872116]
[1727970515226,0.244565,60619.0,60611.0,0.164985]
[1727970515469,0.244565,60619.0,60615.0,0.164974]
[1727970515470,0.02586183,60616.0,60615.0,0.164974]
[1727970515702,0.02586183,60616.0,60608.0,0.24872116]
[1727970515703,0.02586183,60616.0,60613.0,0.16498]
[1727970515927,0.0796,60619.0,60610.0,0.329976]
[1727970516165,0.164976,60615.0,60611.0,0.164983]
[1727970516433,0.1207516,60619.0,60608.0,0.164993]
[1727970516674,0.1207516,60619.0,60611.0,0.164986]
[1727970516675,0.164976,60615.0,60611.0,0.164986]
[1727970516901,0.0917,60618.0,60613.0,0.164978]
[1727970516902,0.256668,60618.0,60613.0,0.164978]
[1727970517124,0.164977,60615.0,60610.0,0.164989]
[1727970517355,0.0917,60618.0,60606.0,0.0497511]
[1727970517622,0.164985,60612.0,60609.0,0.24872116]
[1727970517852,0.0796,60619.0,60616.0,0.16497]
[1727970518090,0.001,60618.0,60613.0,0.329958]
[1727970518320,0.001,60618.0,60617.0,0.16497]
[1727970518788,0.001,60618.0,60617.0,0.45006235]
[1727970519480,0.003,60618.0,60617.0,0.45006235]
[1727970519743,0.001,60618.0,60617.0,0.45006235]
[1727970519971,0.02585525,60624.0,60617.0,0.45006235]
[1727970519972,0.02585525,60624.0,60623.0,0.164953]
[1727970520200,0.02585525,60624.0,60623.0,0.45004535]
[1727970520421,0.24872116,60634.0,60633.0,0.164926]
[1727970520655,0.076016,60639.0,60623.0,0.28509235]
[1727970520656,0.076016,60639.0,60634.0,0.329846]
[1727970520880,0.076016,60639.0,60638.0,0.164913]
[1727970521122,0.076016,60639.0,60628.0,0.28509235]
[1727970521123,0.076016,60639.0,60635.0,0.494755]
[1727970521371,0.076016,60639.0,60637.0,0.164914]
[1727970521600,0.1257474,60639.0,60626.0,0.0492099]
[1727970521831,0.076016,60639.0,60636.0,0.164916]
[1727970522071,0.24872116,60638.0,60626.0,0.0492099]
[1727970522304,0.03357372,60637.0,60631.0,0.164931]
[1727970522538,0.087016,60639.0,60635.0,0.16492]
[1727970523014,0.087016,60639.0,60638.0,0.164913]
[1727970523015,0.089016,60639.0,60638.0,0.164913]
[1727970523246,0.089016,60639.0,60635.0,0.001]
[1727970523247,0.078016,60639.0,60635.0,0.001]
[1727970523477,0.0089016,60638.0,60630.0,0.24872116]
[1727970523768,0.164919,60636.0,60630.0,0.24872116]
[1727970524009,0.0089016,60638.0,60630.0,0.24872116]
[1727970524237,0.04505748,60637.0,60631.0,0.164931]
[1727970524493,0.164918,60636.0,60635.0,0.001]
[1727970524973,0.44169215,60639.0,60626.0,0.0492099]
[1727970524974,0.10186815,60639.0,60626.0,0.0492099]
[1727970525208,0.164923,60635.0,60631.0,0.164931]
[1727970525426,0.007,60636.0,60630.0,0.331866]
[1727970525920,0.007,60636.0,60635.0,0.164921]
[1727970526402,0.007,60636.0,60635.0,0.165921]
[1727970526403,0.009,60636.0,60635.0,0.165921]
[1727970526879,0.002,60636.0,60635.0,0.165921]
[1727970527111,0.009,60636.0,60635.0,0.166921]
[1727970527583,0.002,60636.0,60635.0,0.1725854]
[1727970527818,0.001016,60639.0,60638.0,0.164913]
[1727970528083,0.001016,60639.0,60638.0,0.45000535]
[1727970529017,0.001016,60639.0,60638.0,0.164913]
[1727970529282,0.001016,60639.0,60638.0,0.175913]
[1727970529727,0.002016,60639.0,60638.0,0.186913]
[1727970530663,0.002016,60639.0,60638.0,0.43563416]
[1727970530892,0.002016,60639.0,60638.0,0.186913]
[1727970531345,0.002016,60639.0,60638.0,0.022]
[1727970531565,0.002016,60639.0,60638.0,0.186913]
[1727970532209,0.002016,60639.0,60638.0,0.022]
[1727970532424,0.08626379,60639.0,60634.0,0.329842]
[1727970532641,0.001016,60639.0,60637.0,0.164915]
[1727970532854,0.164916,60637.0,60633.0,0.164926]
[1727970533091,0.0499754,60636.0,60634.0,0.164922]
[1727970533308,0.0499754,60636.0,60635.0,0.164921]
[1727970533757,0.0922,60638.0,60629.0,0.24872116]
[1727970533991,0.0922,60638.0,60637.0,0.164915]
[1727970534211,0.03086837,60639.0,60628.0,0.00665637]
[1727970534212,0.02686837,60639.0,60628.0,0.00665637]
[1727970534446,0.241943,60627.0,60626.0,0.0492099]
[1727970534658,0.26203436,60627.0,60626.0,0.0492099]
[1727970534876,0.26203436,60627.0,60623.0,0.24872116]
[1727970534877,0.164951,60624.0,60623.0,0.24872116]
[1727970535129,0.329921,60621.0,60615.0,0.24872116]
[1727970535348,0.16496,60621.0,60615.0,0.41369416]
[1727970535573,0.16496,60621.0,60615.0,0.57867116]
[1727970535784,0.16496,60621.0,60616.0,0.164971]
[1727970536002,0.0824768,60621.0,60616.0,0.164971]
[1727970536223,0.0824768,60621.0,60614.0,0.2140052]
[1727970536463,0.0824768,60621.0,60615.0,0.164973]
[1727970536464,0.164965,60619.0,60615.0,0.164973]
[1727970536674,0.19082401,60620.0,60616.0,0.164972]
[1727970536896,0.32993,60619.0,60611.0,0.329971]
[1727970537115,0.164974,60616.0,60612.0,0.164982]
[1727970537345,0.044819,60618.0,60612.0,0.164983]
[1727970537566,0.164971,60617.0,60613.0,0.16498]
[1727970537784,0.003,60620.0,60612.0,0.329966]
[1727970538011,0.164976,60615.0,60611.0,0.164985]
[1727970538311,0.3754626,60619.0,60609.0,0.329983]
[1727970538520,0.3754626,60619.0,60612.0,0.164982]
[1727970538521,0.164973,60616.0,60612.0,0.164982]
[1727970538731,0.05404356,60615.0,60611.0,0.32997]
[1727970538954,0.05404356,60615.0,60609.0,0.329983]
[1727970539176,0.21901956,60615.0,60611.0,0.164985]
[1727970539398,0.164981,60613.0,60611.0,0.002]
[1727970539621,0.164983,60612.0,60611.0,0.002]
[1727970539845,0.05404356,60615.0,60611.0,0.002]
[1727970540071,0.329954,60615.0,60611.0,0.002]
[1727970540312,0.329944,60617.0,60611.0,0.002]
[1727970540313,0.329957,60614.0,60611.0,0.002]
[1727970540517,0.246683,60612.0,60611.0,0.002]
[1727970540758,0.0817,60612.0,60611.0,0.005]
[1727970540988,0.246683,60612.0,60611.0,0.009]
[1727970541253,0.165003,60605.0,60598.0,0.330039]
[1727970541462,0.329983,60610.0,60603.0,0.165007]
[1727970541463,0.165,60606.0,60603.0,0.165007]
[1727970541681,0.165,60606.0,60602.0,0.24872116]
[1727970541682,0.330001,60606.0,60602.0,0.24872116]
[1727970541898,0.164993,60609.0,60605.0,0.165001]
[1727970542160,0.02083328,60609.0,60598.0,0.33004]
[1727970542377,0.28509235,60604.0,60597.0,0.24872116]
[1727970542647,0.28509235,60599.0,60593.0,0.049601]
[1727970542917,0.62792435,60594.0,60593.0,0.049601]
[1727970543170,0.165041,60591.0,60580.0,0.24872116]
[1727970543454,0.29919514,60591.0,60586.0,0.0493977]
[1727970543703,0.165041,60591.0,60580.0,0.24872116]
[1727970543954,0.190041,60591.0,60580.0,0.24872116]
[1727970544227,0.165041,60591.0,60580.0,0.24872116]
[1727970544475,0.20991524,60591.0,60590.0,0.003632]
[1727970544722,0.20991524,60591.0,60590.0,0.167675]
[1727970544723,0.03987424,60591.0,60590.0,0.167675]
[1727970544959,0.03987424,60591.0,60590.0,0.002632]
[1727970545667,0.48100759,60591.0,60590.0,0.002632]
[1727970545885,0.49500759,60591.0,60590.0,0.003632]
[1727970546537,0.48300759,60591.0,60590.0,0.002632]
[1727970546801,0.71010225,60591.0,60590.0,0.003632]
[1727970547256,0.69310225,60591.0,60590.0,0.001632]
[1727970547470,0.69310225,60591.0,60579.0,0.25035316]
[1727970547471,0.16507,60580.0,60579.0,0.25035316]
[1727970547700,0.0785,60580.0,60579.0,0.41542616]
[1727970547940,0.0785,60590.0,60581.0,0.330133]
[1727970548173,0.165057,60585.0,60581.0,0.165067]
[1727970548390,0.01907,60589.0,60579.0,0.001632]
[1727970548679,0.61520235,60586.0,60579.0,0.002632]
[1727970548893,0.005,60580.0,60579.0,0.001632]
[1727970549109,0.165057,60585.0,60580.0,0.165069]
[1727970549329,0.165069,60581.0,60579.0,0.001632]
[1727970549540,0.002,60589.0,60579.0,0.001632]
[1727970549541,0.16507,60580.0,60579.0,0.001632]
[1727970549756,0.330128,60583.0,60579.0,0.001632]
[1727970549984,0.330104,60587.0,60579.0,0.002632]
[1727970550197,0.009,60580.0,60579.0,0.167705]
[1727970550418,0.17407,60580.0,60579.0,0.002632]
[1727970550656,0.2154899,60580.0,60579.0,0.001632]
[1727970550870,0.0504199,60580.0,60579.0,0.001632]
[1727970551075,0.2154899,60580.0,60579.0,0.002632]
[1727970551307,0.24136661,60580.0,60579.0,0.001632]
[1727970551542,0.53045896,60580.0,60579.0,0.001632]
[1727970551764,0.70205896,60580.0,60579.0,0.001632]
[1727970552016,0.20147671,60580.0,60579.0,0.001632]
[1727970552245,0.20347671,60580.0,60579.0,0.001632]
[1727970552511,0.36854671,60580.0,60579.0,0.001632]
[1727970552731,0.36454671,60580.0,60579.0,0.001632]
[1727970552961,0.36954671,60580.0,60579.0,0.001632]
[1727970553420,0.36254671,60580.0,60579.0,0.001632]
[1727970553890,0.65363906,60580.0,60579.0,0.001632]
[1727970554111,0.36354671,60580.0,60579.0,0.001632]
[1727970554381,0.36554671,60580.0,60579.0,0.001632]
[1727970554619,0.20047671,60580.0,60579.0,0.001632]
[1727970554853,0.20047671,60580.0,60579.0,0.166705]
[1727970555110,0.20047671,60580.0,60579.0,0.001632]
[1727970555339,0.1746,60580.0,60579.0,0.166705]
[1727970555570,0.0784,60580.0,60579.0,0.001632]
[1727970556928,0.24347,60580.0,60579.0,0.001632]
[1727970557202,0.003,60580.0,60579.0,0.166705]
[1727970558789,0.02787466,60580.0,60579.0,0.166705]
[1727970559706,0.246845,60590.0,60585.0,0.165056]
[1727970559928,0.23368561,60589.0,60585.0,0.165056]
[1727970560362,0.0818,60590.0,60589.0,0.165046]
[1727970560815,0.1973,60596.0,60595.0,0.16503]
[1727970561957,0.1973,60596.0,60593.0,0.165032]
[1727970562179,0.1973,60596.0,60593.0,0.33007]
[1727970562413,0.1973,60596.0,60592.0,0.330073]
[1727970562414,0.1744458,60596.0,60595.0,0.16503]
[1727970562629,0.0973,60596.0,60595.0,0.16503]
[1727970562842,0.12317222,60596.0,60595.0,0.16503]
[1727970563295,0.02587222,60596.0,60595.0,0.16503]
[1727970563519,0.02587222,60596.0,60589.0,0.330092]
[1727970563520,0.19090022,60596.0,60591.0,0.330081]
[1727970563745,0.01049722,60595.0,60591.0,0.330081]
[1727970563973,0.01049722,60595.0,60594.0,0.165032]
[1727970564195,0.02587222,60596.0,60595.0,0.16503]
[1727970564423,0.03587222,60596.0,60595.0,0.16703]
[1727970564666,0.04087222,60596.0,60595.0,0.16703]
[1727970564899,0.04087222,60596.0,60595.0,0.002]
[1727970565587,0.31889004,60596.0,60595.0,0.002]
[1727970565809,0.42059004,60596.0,60595.0,0.002]
[1727970566044,0.50771782,60596.0,60595.0,0.001]
[1727970566280,0.18806,60584.0,60579.0,0.001632]
[1727970566513,0.68022835,60584.0,60579.0,0.001632]
[1727970566763,0.16707,60580.0,60579.0,0.001632]
[1727970566998,0.37007,60580.0,60579.0,0.001632]
[1727970567239,0.46347,60580.0,60579.0,0.001632]
[1727970567999,0.2984,60580.0,60579.0,0.001632]
[1727970568441,0.46347,60580.0,60579.0,0.001632]
[1727970568886,0.57040172,60580.0,60579.0,0.001632]
[1727970569112,0.58440172,60580.0,60579.0,0.001632]
[1727970569331,0.61028189,60580.0,60579.0,0.001632]
[1727970569558,0.62428189,60580.0,60579.0,0.002632]
[1727970569782,0.59428189,60580.0,60579.0,0.001632]
[1727970570015,0.61828189,60580.0,60579.0,0.002632]
[1727970570465,0.48935017,60580.0,60579.0,0.001632]
[1727970570706,0.48935017,60580.0,60579.0,0.002632]
[1727970570707,0.50335017,60580.0,60579.0,0.002632]
[1727970570931,0.51935017,60580.0,60579.0,0.001632]
[1727970571162,0.66581972,60580.0,60579.0,0.001632]
[1727970572097,0.66381972,60580.0,60579.0,0.001632]
[1727970572322,0.66481972,60580.0,60579.0,0.002632]
[1727970572561,0.66481972,60580.0,60579.0,0.001632]
[1727970572562,0.63781972,60580.0,60579.0,0.001632]
[1727970572782,0.64881972,60580.0,60579.0,0.001632]
[1727970573017,0.66281972,60580.0,60579.0,0.001632]
[1727970573471,0.67481972,60580.0,60579.0,0.001632]
[1727970575326,0.36128017,60580.0,60579.0,0.001632]
[1727970575522,0.33828017,60580.0,60579.0,0.001632]
[1727970575827,0.50335017,60580.0,60579.0,0.001632]
[1727970576073,0.47747,60580.0,60579.0,0.001632]
[1727970576529,0.50047,60580.0,60579.0,0.001632]
[1727970576762,0.66365671,60580.0,60579.0,0.001632]
[1727970576980,0.50047,60580.0,60579.0,0.001632]
[1727970577425,0.50047,60580.0,60579.0,0.00149457]
[1727970578120,0.55051088,60580.0,60579.0,0.00149457]
[1727970579255,0.57639319,60580.0,60579.0,0.00149457]
[1727970579498,0.72906744,60580.0,60579.0,0.00149457]
[1727970579731,0.65576835,60578.0,60574.0,0.001632]
[1727970579978,0.70380923,60578.0,60574.0,0.001632]
[1727970580207,0.372384,60575.0,60574.0,0.001632]
[1727970580433,0.42042488,60575.0,60574.0,0.001632]
[1727970580722,0.67511159,60575.0,60574.0,0.001632]
[1727970582332,0.93575659,60575.0,60574.0,0.001632]
[1727970582549,0.92491159,60575.0,60574.0,0.001632]
[1727970583514,0.92491159,60575.0,60565.0,0.001632]
[1727970583515,0.002,60566.0,60565.0,0.001632]
[1727970583748,0.62889115,60566.0,60565.0,0.001632]
[1727970584231,0.290133,60557.0,60555.0,0.24872116]
[1727970584525,0.290133,60557.0,60546.0,0.24872116]
[1727970584526,0.74742535,60557.0,60546.0,0.24872116]
[1727970584722,0.290158,60548.0,60546.0,0.24872116]
[1727970584959,0.75272795,60548.0,60546.0,0.24872116]
[1727970585200,0.75072795,60548.0,60546.0,0.24872116]
[1727970585421,0.75072795,60548.0,60537.0,0.001632]
[1727970586118,0.68154498,60548.0,60537.0,0.001632]
[1727970586338,0.65765035,60548.0,60537.0,0.001632]
[1727970586560,0.65565035,60548.0,60537.0,0.001632]
[1727970586790,0.67065035,60548.0,60537.0,0.001632]
[1727970587289,0.82509935,60548.0,60537.0,0.25035316]
[1727970587528,1.04436006,60548.0,60537.0,0.25035316]
[1727970587753,1.04436006,60548.0,60537.0,0.001632]
[1727970587754,0.92563706,60548.0,60537.0,0.001632]
[1727970588616,0.93063706,60548.0,60537.0,0.001632]
[1727970588862,0.92963706,60548.0,60537.0,0.001632]
[1727970589093,0.95153482,60548.0,60537.0,0.001632]
[1727970589316,0.95653482,60548.0,60537.0,0.001632]
[1727970589794,0.95153482,60548.0,60537.0,0.25035316]
[1727970590015,0.95653482,60548.0,60537.0,0.25035316]
[1727970590459,0.65477735,60538.0,60537.0,0.25035316]
[1727970590935,0.65677735,60538.0,60537.0,0.001632]
[1727970592098,1.05229835,60538.0,60537.0,0.001632]
[1727970592553,0.86464235,60538.0,60537.0,0.001632]
[1727970592786,0.89574035,60538.0,60537.0,0.001632]
[1727970593000,1.05892706,60538.0,60537.0,0.001632]
[1727970593226,1.08692706,60538.0,60537.0,0.001632]
[1727970593481,0.83396406,60538.0,60537.0,0.001632]
[1727970593702,0.87386519,60538.0,60537.0,0.001632]
[1727970593962,0.97574719,60538.0,60537.0,0.001632]
[1727970594208,0.87386519,60538.0,60537.0,0.001632]
[1727970594896,0.85786519,60538.0,60537.0,0.001632]
[1727970595360,0.85986519,60538.0,60537.0,0.001632]
[1727970595583,0.84586519,60538.0,60537.0,0.001632]
[1727970595809,0.85986519,60538.0,60537.0,0.001632]
[1727970596037,0.84796406,60538.0,60537.0,0.001632]
[1727970596477,0.84596406,60538.0,60537.0,0.001632]
[1727970596710,0.397685,60538.0,60537.0,0.001632]
[1727970596932,0.374685,60538.0,60537.0,0.001632]
[1727970597386,0.65977735,60538.0,60537.0,0.001632]